bitfinex/quotes_SOLUSD_20230120
["timestamp","ask_amount","ask_price","bid_price","bid_amount"]
[1674186262920,0.96,21.353,21.336,0.96]
[1674186263093,0.96,21.353,21.337,0.96]
[1674186263742,0.96,21.353,21.336,0.96]
[1674186263948,0.96,21.354,21.34,15.04]
[1674186264264,0.96,21.354,21.341,17.0]
[1674186264474,140.8,21.375,21.341,17.0]
[1674186264475,35.11,21.361,21.341,17.0]
[1674186264681,124.5587,21.363,21.342,21.92]
[1674186264883,124.5587,21.363,21.343,10.0]
[1674186265095,10.0,21.361,21.344,38.92]
[1674186265315,10.0,21.361,21.345,10.0]
[1674186265509,10.0,21.361,21.346,17.0]
[1674186265728,10.0,21.361,21.347,20.0]
[1674186265937,1.92,21.36,21.347,20.0]
[1674186268048,1.83473097,21.36,21.347,20.0]
[1674186277203,10.0,21.361,21.347,20.0]
[1674186277397,10.0,21.361,21.348,17.0]
[1674186278482,113.0178,21.362,21.348,17.0]
[1674186279815,45.1,21.372,21.35,15.04]
[1674186280028,121.1983,21.371,21.351,28.92]
[1674186280346,10.0,21.367,21.351,28.92]
[1674186281820,10.0,21.367,21.351,18.92]
[1674186282023,45.1,21.367,21.351,18.92]
[1674186282347,10.0,21.367,21.351,18.92]
[1674186282966,10.0,21.367,21.351,17.96]
[1674186283189,0.96,21.366,21.351,17.96]
[1674186283400,0.96,21.366,21.351,17.0]
[1674186284330,10.0,21.367,21.352,10.96]
[1674186284536,10.0,21.367,21.353,17.96]
[1674186284744,10.0,21.367,21.354,0.96]
[1674186287175,10.0,21.367,21.353,17.96]
[1674186288016,111.1983,21.371,21.354,10.0]
[1674186288234,111.1983,21.371,21.355,38.92]
[1674186288439,111.1983,21.371,21.356,10.0]
[1674186288631,111.1983,21.371,21.357,18.92]
[1674186288842,111.1983,21.371,21.357,38.92]
[1674186290528,10.0,21.37,21.357,38.92]
[1674186294853,10.0,21.37,21.357,20.0]
[1674186295042,1.92,21.369,21.357,20.0]
[1674186295251,1.92,21.369,21.352,20.0]
[1674186296018,1.92,21.369,21.353,17.0]
[1674186296323,10.0,21.367,21.354,20.0]
[1674186296520,10.0,21.367,21.355,17.0]
[1674186296739,10.0,21.367,21.356,20.0]
[1674186299772,1.92,21.366,21.352,20.0]
[1674186300522,1.92,21.366,21.35,15.04]
[1674186300735,1.92,21.366,21.34,124.0062]
[1674186300948,1.92,21.366,21.344,0.96]
[1674186301898,1.92,21.366,21.35,14.99]
[1674186302112,10.0,21.367,21.351,17.96]
[1674186302414,0.96,21.366,21.351,17.0]
[1674186302609,10.0,21.367,21.352,0.96]
[1674186302821,10.0,21.367,21.352,11.92]
[1674186303039,10.0,21.367,21.353,17.96]
[1674186303249,10.0,21.37,21.354,0.96]
[1674186303447,10.0,21.372,21.355,0.96]
[1674186303658,10.0,21.372,21.356,0.96]
[1674186303867,10.0,21.37,21.357,0.96]
[1674186304210,10.0,21.37,21.357,17.96]
[1674186304394,10.0,21.37,21.357,17.0]
[1674186307553,0.96,21.369,21.357,17.0]
[1674186309683,0.96,21.368,21.357,17.0]
[1674186309875,0.96,21.367,21.356,20.0]
[1674186310084,0.96,21.366,21.352,20.0]
[1674186310516,0.96,21.366,21.353,10.0]
[1674186310735,0.96,21.366,21.354,20.0]
[1674186311047,0.96,21.366,21.355,17.0]
[1674186311260,0.96,21.366,21.356,20.0]
[1674186311680,0.96,21.367,21.356,20.0]
[1674186311889,0.96,21.369,21.356,20.0]
[1674186312089,0.96,21.368,21.356,20.0]
[1674186312300,0.96,21.367,21.356,20.0]
[1674186312832,121.1983,21.371,21.357,10.0]
[1674186313037,10.0,21.37,21.358,17.0]
[1674186313465,10.0,21.37,21.359,20.0]
[1674186313671,10.0,21.37,21.357,17.0]
[1674186313879,10.0,21.37,21.35,14.99]
[1674186314089,35.1,21.369,21.352,20.0]
[1674186314286,35.1,21.369,21.35,14.99]
[1674186314832,30.0,21.368,21.34,120.7611]
[1674186315040,54.02,21.367,21.34,120.7611]
[1674186315567,10.0,21.366,21.34,120.7611]
[1674186315755,54.03,21.365,21.34,120.7611]
[1674186316182,54.03,21.365,21.341,20.0]
[1674186316619,10.0,21.364,21.341,20.0]
[1674186316810,10.0,21.362,21.341,20.0]
[1674186317135,10.0,21.36,21.341,20.0]
[1674186317558,1.92,21.359,21.341,20.0]
[1674186318605,1.92,21.359,21.342,17.0]
[1674186318827,1.92,21.359,21.343,20.0]
[1674186319139,1.92,21.359,21.344,17.0]
[1674186319797,1.92,21.359,21.345,20.0]
[1674186320502,10.0,21.358,21.345,20.0]
[1674186320717,1.92,21.357,21.345,20.0]
[1674186321551,18.92,21.357,21.345,20.0]
[1674186321762,10.0,21.356,21.338,20.0]
[1674186321986,1.92,21.355,21.338,20.0]
[1674186322822,1.92,21.355,21.339,17.0]
[1674186323022,1.92,21.355,21.34,20.0]
[1674186323229,1.92,21.355,21.341,17.0]
[1674186323443,1.92,21.355,21.342,20.0]
[1674186323677,10.0,21.356,21.342,20.0]
[1674186325019,0.96,21.355,21.342,20.0]
[1674186325233,0.96,21.354,21.342,20.0]
[1674186325438,0.96,21.355,21.342,20.0]
[1674186325650,10.0,21.358,21.344,10.0]
[1674186325881,35.11,21.365,21.345,20.0]
[1674186326068,35.11,21.365,21.346,17.0]
[1674186326280,35.11,21.365,21.347,20.0]
[1674186326501,35.11,21.365,21.348,17.0]
[1674186327648,45.1,21.367,21.348,17.0]
[1674186329989,10.0,21.367,21.348,17.0]
[1674186330291,45.1,21.367,21.348,17.0]
[1674186332074,0.96,21.36,21.347,20.0]
[1674186332276,0.96,21.36,21.343,10.0]
[1674186332484,0.96,21.36,21.344,20.0]
[1674186333554,0.96,21.36,21.345,17.0]
[1674186333766,0.96,21.36,21.346,20.0]
[1674186334076,0.96,21.36,21.347,17.0]
[1674186334684,0.96,21.359,21.347,17.0]
[1674186335443,0.96,21.36,21.347,17.0]
[1674186335633,35.11,21.365,21.347,17.0]
[1674186336185,0.96,21.36,21.347,17.0]
[1674186336368,1.92,21.36,21.346,20.0]
[1674186336578,0.96,21.359,21.341,20.0]
[1674186336788,10.96,21.359,21.341,20.0]
[1674186337019,0.96,21.358,21.341,20.0]
[1674186337233,0.96,21.357,21.341,20.0]
[1674186337464,0.96,21.356,21.341,20.0]
[1674186337671,0.96,21.355,21.341,20.0]
[1674186337880,0.96,21.354,21.341,20.0]
[1674186338191,10.0,21.359,21.341,20.0]
[1674186338513,0.96,21.358,21.342,10.0]
[1674186338707,0.96,21.357,21.344,10.0]
[1674186339139,0.96,21.357,21.345,17.0]
[1674186339449,0.96,21.357,21.345,37.0]
[1674186339645,0.96,21.357,21.345,20.0]
[1674186339858,0.96,21.357,21.343,20.0]
[1674186340169,0.96,21.357,21.344,17.0]
[1674186340380,0.96,21.357,21.345,20.0]
[1674186343438,10.96,21.357,21.345,20.0]
[1674186343650,0.96,21.356,21.341,20.0]
[1674186343860,0.96,21.356,21.333,5.88951548]
[1674186344079,35.12,21.355,21.33,125.1589]
[1674186344285,17.96,21.354,21.33,125.1589]
[1674186344479,46.09,21.353,21.33,125.1589]
[1674186344814,17.96,21.352,21.33,125.1589]
[1674186345016,36.09,21.351,21.33,125.1589]
[1674186345238,0.96,21.35,21.331,10.0]
[1674186345424,0.96,21.349,21.331,10.0]
[1674186345630,0.96,21.348,21.331,10.0]
[1674186345857,0.96,21.347,21.331,10.0]
[1674186346277,0.96,21.347,21.332,20.0]
[1674186346597,0.96,21.348,21.332,20.0]
[1674186346804,0.96,21.35,21.332,20.0]
[1674186347023,0.96,21.349,21.333,17.0]
[1674186347205,0.96,21.348,21.334,20.0]
[1674186347418,0.96,21.348,21.335,17.0]
[1674186347644,0.96,21.348,21.336,20.0]
[1674186347865,0.96,21.348,21.337,17.0]
[1674186349881,0.96,21.348,21.336,20.0]
[1674186350064,0.96,21.347,21.333,10.0]
[1674186350254,0.96,21.347,21.335,10.0]
[1674186350598,0.96,21.347,21.336,17.0]
[1674186350803,0.96,21.348,21.337,20.0]
[1674186350996,108.0642,21.351,21.337,20.0]
[1674186351209,108.0642,21.351,21.338,17.0]
[1674186351537,108.0642,21.351,21.339,10.0]
[1674186351749,108.0642,21.351,21.34,17.0]
[1674186352064,108.0642,21.351,21.341,10.0]
[1674186352276,108.0642,21.351,21.342,17.0]
[1674186352459,45.12,21.359,21.342,17.0]
[1674186352669,10.0,21.359,21.343,20.0]
[1674186352896,10.0,21.359,21.344,17.0]
[1674186353117,10.0,21.359,21.345,20.0]
[1674186353769,1.92,21.356,21.345,20.0]
[1674186356920,1.92,21.356,21.341,20.0]
[1674186357233,1.92,21.356,21.342,17.0]
[1674186357438,1.92,21.356,21.343,20.0]
[1674186357640,1.92,21.356,21.342,17.0]
[1674186357967,1.92,21.356,21.341,17.0]
[1674186358279,10.0,21.355,21.341,17.0]
[1674186358494,1.92,21.354,21.341,17.0]
[1674186359645,10.0,21.355,21.341,17.0]
[1674186360997,0.96,21.354,21.341,17.0]
[1674186361204,0.96,21.353,21.341,17.0]
[1674186362570,10.0,21.355,21.341,17.0]
[1674186365119,1.92,21.354,21.341,17.0]
[1674186366375,1.92,21.354,21.34,15.05]
[1674186366581,10.0,21.353,21.334,10.0]
[1674186366795,1.92,21.352,21.336,20.0]
[1674186367526,10.0,21.35,21.336,20.0]
[1674186367725,10.0,21.35,21.337,17.0]
[1674186373623,1.92,21.349,21.337,17.0]
[1674186374478,10.0,21.35,21.337,17.0]
[1674186383419,10.0,21.35,21.336,20.0]
[1674186383641,10.0,21.35,21.334,20.0]
[1674186384563,10.0,21.35,21.335,17.0]
[1674186384768,10.0,21.35,21.336,20.0]
[1674186384978,10.0,21.35,21.337,17.0]
[1674186393189,35.13,21.353,21.337,17.0]
[1674186393405,35.11,21.361,21.341,10.0]
[1674186393710,35.11,21.363,21.342,49.42]
[1674186394031,10.0,21.36,21.342,49.42]
[1674186396025,0.96,21.359,21.342,49.42]
[1674186396344,0.96,21.358,21.343,10.0]
[1674186396655,0.96,21.358,21.344,37.0]
[1674186398655,0.96,21.359,21.344,37.0]
[1674186398857,1.92,21.359,21.344,37.0]
[1674186399060,1.92,21.359,21.344,38.375]
[1674186399687,10.0,21.36,21.345,10.0]
[1674186400036,10.0,21.36,21.346,37.0]
[1674186400760,10.0,21.361,21.347,10.0]
[1674186400948,10.0,21.361,21.348,17.0]
[1674186401687,10.0,21.361,21.347,17.0]
[1674186404021,10.0,21.361,21.348,0.96]
[1674186404876,115.8957,21.362,21.35,15.02]
[1674186405181,145.2896,21.369,21.351,38.92]
[1674186405386,10.0,21.368,21.352,10.0]
[1674186405595,10.0,21.368,21.353,18.92]
[1674186405810,10.0,21.368,21.354,20.0]
[1674186406007,10.0,21.368,21.355,17.0]
[1674186406212,10.0,21.368,21.356,20.0]
[1674186406417,10.0,21.368,21.357,17.0]
[1674186408834,145.2896,21.369,21.357,17.0]
[1674186409044,10.0,21.368,21.357,17.0]
[1674186409676,110.1896,21.369,21.357,17.0]
[1674186410642,10.0,21.368,21.357,17.0]
[1674186411381,10.0,21.368,21.357,18.192]
[1674186411565,110.1896,21.369,21.357,18.192]
[1674186411778,10.0,21.372,21.357,18.192]
[1674186412112,114.1776,21.378,21.358,1.92]
[1674186412302,35.09,21.377,21.358,0.96]
[1674186412636,10.0,21.372,21.358,10.0]
[1674186412854,10.0,21.372,21.359,17.0]
[1674186413469,10.0,21.372,21.357,20.707]
[1674186413894,10.0,21.372,21.357,3.707]
[1674186414105,10.0,21.37,21.353,24.018]
[1674186414312,1.92,21.369,21.353,20.0]
[1674186415168,1.92,21.369,21.355,10.0]
[1674186415372,1.92,21.369,21.356,20.0]
[1674186416114,1.92,21.369,21.357,17.0]
[1674186417680,10.0,21.37,21.357,17.0]
[1674186419032,45.1,21.372,21.357,17.0]
[1674186419262,10.0,21.374,21.358,10.0]
[1674186419451,10.0,21.372,21.359,17.0]
[1674186420083,35.09,21.375,21.36,15.05]
[1674186420297,35.09,21.376,21.361,37.0]
[1674186420501,10.0,21.382,21.362,10.0]
[1674186420716,35.08,21.381,21.363,37.0]
[1674186420947,35.08,21.381,21.364,10.0]
[1674186421155,35.08,21.381,21.365,37.0]
[1674186421370,10.0,21.377,21.365,37.0]
[1674186423570,10.0,21.377,21.362,10.0]
[1674186423571,10.0,21.377,21.36,15.05]
[1674186423767,35.09,21.376,21.36,15.05]
[1674186423984,11.92,21.375,21.36,15.05]
[1674186424197,10.0,21.373,21.36,15.05]
[1674186424942,1.92,21.372,21.36,15.05]
[1674186425128,1.92,21.372,21.35,102.75371827]
[1674186425548,1.92,21.372,21.356,20.0]
[1674186425979,10.0,21.371,21.356,20.0]
[1674186427040,0.96,21.37,21.356,20.0]
[1674186428495,0.96,21.37,21.357,17.0]
[1674186428817,10.0,21.368,21.356,20.0]
[1674186429027,10.0,21.366,21.352,20.0]
[1674186429238,1.92,21.365,21.352,20.0]
[1674186429656,10.0,21.366,21.352,20.0]
[1674186430082,0.96,21.365,21.352,20.0]
[1674186430280,0.96,21.365,21.34,20.1281]
[1674186430281,0.96,21.364,21.34,20.1281]
[1674186430503,0.96,21.364,21.342,10.0]
[1674186430823,0.96,21.364,21.344,10.0]
[1674186431039,0.96,21.363,21.35,14.99]
[1674186432608,0.96,21.362,21.344,10.0]
[1674186432804,0.96,21.361,21.345,20.0]
[1674186433019,0.96,21.36,21.345,20.0]
[1674186433863,0.96,21.36,21.346,17.0]
[1674186434179,0.96,21.36,21.347,20.0]
[1674186434380,0.96,21.36,21.348,17.0]
[1674186442172,0.96,21.359,21.348,17.0]
[1674186442397,0.96,21.36,21.348,17.0]
[1674186443940,10.96,21.361,21.348,17.0]
[1674186444172,10.0,21.361,21.348,17.0]
[1674186446791,10.0,21.361,21.35,15.05]
[1674186447003,10.0,21.361,21.351,17.0]
[1674186449219,10.0,21.361,21.35,15.05]
[1674186449408,1.92,21.36,21.347,20.0]
[1674186449740,1.92,21.36,21.348,17.0]
[1674186450779,10.0,21.361,21.348,17.0]
[1674186453307,1.92,21.36,21.348,17.0]
[1674186457302,10.0,21.361,21.348,17.0]
[1674186461421,10.0,21.361,21.35,14.99]
[1674186461609,10.0,21.361,21.351,17.0]
[1674186464568,10.0,21.361,21.344,10.0]
[1674186464785,1.92,21.36,21.345,20.0]
[1674186465195,1.92,21.36,21.341,20.0]
[1674186466157,1.92,21.36,21.342,17.96]
[1674186466371,1.92,21.36,21.343,20.0]
[1674186466585,1.92,21.36,21.344,17.0]
[1674186466900,1.92,21.36,21.345,20.0]
[1674186467089,1.92,21.36,21.346,17.0]
[1674186467300,1.92,21.36,21.347,20.0]
[1674186469930,10.0,21.359,21.347,20.0]
[1674186470139,1.92,21.358,21.341,20.0]
[1674186471630,1.92,21.358,21.342,17.0]
[1674186471819,1.92,21.358,21.343,20.0]
[1674186472025,18.92,21.358,21.333,74.42534102]
[1674186472250,10.0,21.356,21.331,10.0]
[1674186472476,10.0,21.354,21.331,10.0]
[1674186472781,119.5777,21.353,21.331,10.0]
[1674186473093,10.96,21.352,21.331,10.0]
[1674186473297,0.96,21.351,21.331,10.0]
[1674186473500,0.96,21.35,21.332,17.0]
[1674186473732,0.96,21.35,21.333,20.96]
[1674186474040,0.96,21.35,21.334,17.96]
[1674186474041,10.96,21.35,21.334,17.96]
[1674186474255,10.96,21.35,21.335,20.0]
[1674186474443,10.96,21.35,21.336,17.0]
[1674186474656,0.96,21.349,21.334,17.0]
[1674186474866,0.96,21.349,21.333,0.96]
[1674186475808,0.96,21.349,21.333,20.96]
[1674186476020,0.96,21.349,21.334,17.0]
[1674186476337,0.96,21.349,21.335,20.0]
[1674186476657,0.96,21.349,21.336,17.0]
[1674186477194,0.96,21.349,21.337,20.0]
[1674186478020,0.96,21.348,21.337,20.0]
[1674186478239,0.96,21.347,21.332,20.0]
[1674186478543,0.96,21.346,21.332,20.0]
[1674186478760,0.96,21.345,21.332,20.0]
[1674186479086,0.96,21.345,21.333,17.0]
[1674186479272,0.96,21.346,21.334,20.0]
[1674186479479,0.96,21.346,21.333,17.0]
[1674186479695,0.96,21.346,21.331,17.0]
[1674186479910,10.96,21.346,21.331,17.0]
[1674186480132,0.96,21.345,21.331,17.0]
[1674186481734,36.1,21.345,21.331,17.0]
[1674186481942,10.96,21.344,21.33,15.05]
[1674186482148,0.96,21.343,21.33,15.05]
[1674186482369,0.96,21.342,21.33,15.05]
[1674186482679,0.96,21.343,21.323,10.0]
[1674186482869,10.0,21.344,21.33,15.04]
[1674186483080,45.14,21.344,21.331,17.0]
[1674186483715,10.0,21.344,21.331,17.0]
[1674186486142,0.96,21.343,21.331,17.0]
[1674186486355,1.92,21.343,21.331,17.0]
[1674186489934,0.96,21.342,21.33,15.04]
[1674186490117,0.96,21.342,21.325,10.0]
[1674186490443,0.96,21.342,21.326,38.92]
[1674186490654,0.96,21.342,21.326,20.0]
[1674186490864,35.15,21.341,21.326,20.0]
[1674186491075,110.4158,21.34,21.322,20.0]
[1674186491499,10.0,21.339,21.322,20.0]
[1674186491706,1.92,21.338,21.323,10.0]
[1674186491927,1.92,21.338,21.324,20.0]
[1674186492117,1.92,21.338,21.325,17.0]
[1674186492326,1.92,21.338,21.326,20.0]
[1674186496563,1.92,21.338,21.323,20.0]
[1674186496866,1.92,21.338,21.324,17.0]
[1674186497059,1.92,21.338,21.325,20.0]
[1674186499493,1.92,21.338,21.321,122.5]
[1674186499494,1.85473351,21.338,21.321,112.5]
[1674186499810,10.0,21.337,21.321,112.5]
[1674186500042,10.0,21.335,21.321,112.5]
[1674186500435,0.96,21.334,21.321,112.5]
[1674186501680,10.0,21.332,21.321,112.5]
[1674186501883,1.92,21.331,21.321,112.5]
[1674186503693,10.0,21.332,21.321,112.5]
[1674186504549,0.96,21.331,21.321,112.5]
[1674186504763,10.0,21.332,21.321,112.5]
[1674186506115,0.96,21.331,21.321,112.5]
[1674186506439,1.92,21.331,21.321,112.5]
[1674186513157,10.0,21.33,21.321,112.5]
[1674186514437,10.0,21.33,21.314,132.18757086]
[1674186514620,10.0,21.33,21.315,37.0]
[1674186514823,1.92,21.329,21.315,20.0]
[1674186515371,1.92,21.329,21.314,20.0]
[1674186515988,1.92,21.329,21.312,10.0]
[1674186516317,1.92,21.329,21.313,37.0]
[1674186517034,45.16,21.332,21.314,10.96]
[1674186517244,10.0,21.333,21.315,37.96]
[1674186517455,35.16,21.336,21.316,10.0]
[1674186517696,35.16,21.336,21.317,37.0]
[1674186517881,35.16,21.336,21.318,10.0]
[1674186518091,35.16,21.336,21.319,17.0]
[1674186518302,35.16,21.336,21.32,10.0]
[1674186518509,1.92,21.334,21.32,10.0]
[1674186519258,1.92,21.334,21.319,17.0]
[1674186519683,30.0,21.338,21.319,17.0]
[1674186519997,30.0,21.338,21.32,10.0]
[1674186520213,30.0,21.338,21.321,17.0]
[1674186520392,30.0,21.338,21.319,36.23137086]
[1674186520606,30.0,21.338,21.319,17.0]
[1674186521157,10.0,21.333,21.318,17.0]
[1674186521339,1.92,21.332,21.318,17.0]
[1674186523366,10.0,21.334,21.319,10.0]
[1674186523559,10.0,21.334,21.32,17.0]
[1674186524321,10.0,21.334,21.321,10.0]
[1674186524495,10.0,21.334,21.322,17.0]
[1674186526319,10.0,21.334,21.321,17.0]
[1674186526832,10.0,21.335,21.322,10.0]
[1674186527039,10.0,21.335,21.323,17.0]
[1674186530729,10.0,21.335,21.321,17.0]
[1674186531048,0.96,21.334,21.321,17.0]
[1674186531238,1.92,21.334,21.321,17.0]
[1674186534602,1.92,21.334,21.32,15.02]
[1674186534818,0.96,21.333,21.32,15.02]
[1674186535024,0.96,21.334,21.32,15.02]
[1674186535235,108.4958,21.34,21.321,56.23137086]
[1674186535444,123.9925,21.347,21.33,14.99]
[1674186535671,113.9925,21.347,21.331,18.92]
[1674186535880,10.0,21.35,21.331,18.92]
[1674186536096,149.1125,21.359,21.331,38.15137086]
[1674186536300,10.0,21.358,21.333,10.0]
[1674186536514,35.12,21.357,21.334,18.92]
[1674186536705,35.12,21.357,21.335,20.0]
[1674186536921,10.0,21.35,21.335,20.0]
[1674186537127,10.0,21.35,21.336,17.0]
[1674186537548,10.0,21.35,21.337,20.0]
[1674186537988,1.92,21.349,21.337,20.0]
[1674186552710,1.92,21.349,21.331,20.0]
[1674186552923,18.92,21.349,21.331,20.0]
[1674186553237,10.0,21.348,21.331,20.0]
[1674186553449,1.92,21.347,21.331,20.0]
[1674186553874,1.92,21.347,21.332,17.0]
[1674186554084,1.92,21.347,21.333,20.0]
[1674186558166,38.92,21.347,21.322,52.72932138]
[1674186558386,10.0,21.345,21.322,10.0]
[1674186558580,54.06,21.344,21.323,29.23137086]
[1674186558791,10.0,21.343,21.323,29.23137086]
[1674186559020,1.92,21.342,21.323,29.23137086]
[1674186559663,1.92,21.342,21.325,37.0]
[1674186560173,1.92,21.342,21.325,17.0]
[1674186561760,1.92,21.342,21.326,20.0]
[1674186561968,1.92,21.342,21.327,17.0]
[1674186567010,18.92,21.342,21.326,20.0]
[1674186567226,10.0,21.34,21.325,20.0]
[1674186567411,1.92,21.339,21.325,20.0]
[1674186567970,1.92,21.339,21.322,20.0]
[1674186568365,1.92,21.339,21.323,17.0]
[1674186568564,1.92,21.339,21.324,20.0]
[1674186569321,1.92,21.339,21.325,17.0]
[1674186569530,1.92,21.339,21.326,20.0]
[1674186573744,1.92,21.339,21.322,20.0]
[1674186573933,1.92,21.339,21.323,17.0]
[1674186574143,1.92,21.339,21.324,20.0]
[1674186575309,10.0,21.343,21.325,0.96]
[1674186575626,10.0,21.343,21.326,10.96]
[1674186575847,10.0,21.343,21.328,10.0]
[1674186576061,10.0,21.343,21.329,18.92]
[1674186576558,10.0,21.343,21.329,17.0]
[1674186576773,10.0,21.343,21.327,17.0]
[1674186577099,0.96,21.342,21.326,17.0]
[1674186577312,1.92,21.342,21.327,20.0]
[1674186577511,118.8706,21.344,21.33,15.02]
[1674186577735,118.8706,21.344,21.332,10.0]
[1674186578260,118.8706,21.344,21.333,17.0]
[1674186579209,35.13,21.353,21.334,20.0]
[1674186579404,10.0,21.35,21.336,10.0]
[1674186579613,10.0,21.35,21.337,37.0]
[1674186581724,0.96,21.349,21.337,37.0]
[1674186581927,0.96,21.349,21.337,20.0]
[1674186582133,0.96,21.348,21.337,20.0]
[1674186582455,0.96,21.347,21.333,20.0]
[1674186583513,0.96,21.347,21.334,17.0]
[1674186583706,0.96,21.347,21.335,20.0]
[1674186586559,0.96,21.348,21.335,20.0]
[1674186586771,0.96,21.349,21.336,17.0]
[1674186586961,1.92,21.349,21.337,20.0]
[1674186587382,10.0,21.35,21.337,20.0]
[1674186587594,10.0,21.35,21.338,17.0]
[1674186588120,154.1406,21.355,21.338,17.0]
[1674186588332,45.12,21.358,21.34,15.05]
[1674186588542,10.0,21.358,21.342,10.0]
[1674186588752,10.0,21.358,21.343,37.0]
[1674186589718,0.96,21.355,21.343,37.0]
[1674186600771,35.12,21.36,21.344,10.0]
[1674186600971,1.92,21.359,21.345,37.0]
[1674186601182,1.92,21.359,21.346,10.0]
[1674186601394,1.92,21.359,21.347,20.0]
[1674186601598,11.92,21.359,21.345,20.0]
[1674186601809,17.0,21.358,21.345,20.0]
[1674186602029,1.92,21.357,21.345,20.0]
[1674186602348,1.92,21.357,21.344,10.0]
[1674186602560,1.92,21.357,21.345,20.0]
[1674186603499,0.96,21.357,21.345,20.0]
[1674186603715,35.11,21.366,21.346,17.0]
[1674186603903,35.11,21.366,21.347,20.0]
[1674186604108,35.11,21.366,21.348,17.0]
[1674186604320,10.0,21.368,21.35,15.05]
[1674186604544,10.0,21.368,21.351,17.0]
[1674186604955,10.0,21.361,21.351,17.0]
[1674186605291,10.0,21.361,21.347,20.0]
[1674186605497,1.92,21.36,21.342,20.0]
[1674186605904,18.92,21.36,21.342,20.0]
[1674186606240,10.0,21.359,21.342,20.0]
[1674186606439,1.92,21.358,21.342,20.0]
[1674186606648,0.96,21.358,21.343,0.96]
[1674186606860,10.0,21.359,21.344,10.0]
[1674186607088,0.96,21.358,21.345,37.0]